[Event "Titled Tuesday Blitz March 01 Early 2022"]
[White "Costachi, Mihnea"]
[Black "Iljin, Timofey"]
[WhiteFideId "1217518"]
[BlackFideId "14110180"]
[WhiteElo "2464"]
[BlackElo "2396"]
[Result "0-1"]
[Round "01"]
[TimeControl "180+1"]
[Date "2022.03.01"]
[WhiteClock "0:01:15"]
[BlackClock "0:00:50"]

1. Nf3 {[%clk 0:02:57]}  f5 {[%clk 0:02:59]} 2. d4 {[%clk 0:02:56]}  Nf6 {[%clk 0:03:00]} 3. g3 {[%clk 0:02:55]}  g6 {[%clk 0:03:01]} 4. Bg2 {[%clk 0:02:54]}  Bg7 {[%clk 0:03:02]} 5. b3 {[%clk 0:02:53]}  O-O {[%clk 0:03:02]} 6. Bb2 {[%clk 0:02:54]}  d6 {[%clk 0:03:03]} 7. O-O {[%clk 0:02:52]}  Qe8 {[%clk 0:03:03]} 8. c4 {[%clk 0:02:52]}  Nc6 {[%clk 0:03:03]} 9. d5 {[%clk 0:02:50]}  Nb8 {[%clk 0:03:04]} 10. Nc3 {[%clk 0:02:50]}  a5 {[%clk 0:03:04]} 11. Nd4 {[%clk 0:02:50]}  Na6 {[%clk 0:03:04]} 12. Ncb5 {[%clk 0:02:50]}  Bd7 {[%clk 0:03:02]} 13. Qd2 {[%clk 0:02:46]}  c5 {[%clk 0:02:53]} 14. dxc6 {[%clk 0:02:44]}  bxc6 {[%clk 0:02:54]} 15. Nc3 {[%clk 0:02:45]}  Nc5 {[%clk 0:02:47]} 16. Rfd1 {[%clk 0:02:36]}  e5 {[%clk 0:02:41]} 17. Nf3 {[%clk 0:02:32]}  Nce4 {[%clk 0:02:34]} 18. Nxe4 {[%clk 0:02:32]}  Nxe4 {[%clk 0:02:30]} 19. Qc2 {[%clk 0:02:32]}  Be6 {[%clk 0:02:24]} 20. Nd2 {[%clk 0:02:32]}  Nc5 {[%clk 0:02:08]} 21. Nf1 {[%clk 0:02:27]}  Rd8 {[%clk 0:02:05]} 22. Qd2 {[%clk 0:02:25]}  a4 {[%clk 0:02:00]} 23. b4 {[%clk 0:02:26]}  Ne4 {[%clk 0:01:48]} 24. Qc2 {[%clk 0:02:25]}  d5 {[%clk 0:01:47]} 25. f3 {[%clk 0:02:17]}  Nd6 {[%clk 0:01:44]} 26. c5 {[%clk 0:02:16]}  Nc4 {[%clk 0:01:44]} 27. Bc1 {[%clk 0:02:10]}  a3 {[%clk 0:01:44]} 28. Rb1 {[%clk 0:02:08]}  f4 {[%clk 0:01:40]} 29. g4 {[%clk 0:02:07]}  h5 {[%clk 0:01:40]} 30. h3 {[%clk 0:02:05]}  hxg4 {[%clk 0:01:40]} 31. hxg4 {[%clk 0:02:06]}  g5 {[%clk 0:01:40]} 32. Rb3 {[%clk 0:02:02]}  Bf7 {[%clk 0:01:35]} 33. Rc3 {[%clk 0:01:53]}  Bg6 {[%clk 0:01:30]} 34. Qb3 {[%clk 0:01:52]}  e4 {[%clk 0:01:05]} 35. Rxc4 {[%clk 0:01:49]}  dxc4 {[%clk 0:01:06]} 36. Qxc4+ {[%clk 0:01:49]}  Bf7 {[%clk 0:01:06]} 37. Rxd8 {[%clk 0:01:45]}  Qxd8 {[%clk 0:01:07]} 38. Qxe4 {[%clk 0:01:43]}  Qd4+ {[%clk 0:01:00]} 39. e3 {[%clk 0:01:37]}  Qxe4 {[%clk 0:00:59]} 40. fxe4 {[%clk 0:01:38]}  Bb2 {[%clk 0:00:58]} 41. Bd2 {[%clk 0:01:36]}  Bxa2 {[%clk 0:00:58]} 42. exf4 {[%clk 0:01:33]}  Bc4 {[%clk 0:00:56]} 43. Ne3 {[%clk 0:01:33]}  a2 {[%clk 0:00:56]} 44. Nxc4 {[%clk 0:01:33]}  a1=Q+ {[%clk 0:00:56]} 45. Kf2 {[%clk 0:01:33]}  Bd4+ {[%clk 0:00:53]} 46. Ke2 {[%clk 0:01:30]}  Qg1 {[%clk 0:00:52]} 47. Kd3 {[%clk 0:01:24]}  Qxg2 {[%clk 0:00:50]} 48. Kxd4 {[%clk 0:01:20]}  gxf4 {[%clk 0:00:50]} 49. Ne3 {[%clk 0:01:15]}  fxe3 {[%clk 0:00:50]} 0-1


[Site "https://www.chess.com"]

[Event "Titled Tuesday Blitz March 01 Early 2022"]
[White "Cruz Ravina, Francisco Javier"]
[Black "Gaehwiler, Gabriel"]
[WhiteFideId "2228939"]
[BlackFideId "1314530"]
[WhiteElo "2408"]
[BlackElo "2383"]
[Result "1-0"]
[Round "01"]
[TimeControl "180+1"]
[Date "2022.03.01"]
[WhiteClock "0:00:05"]
[BlackClock "0:00:27"]

1. Nf3 {[%clk 0:02:58]}  Nf6 {[%clk 0:02:59]} 2. g3 {[%clk 0:02:57]}  b6 {[%clk 0:03:00]} 3. Bg2 {[%clk 0:02:56]}  Bb7 {[%clk 0:03:01]} 4. O-O {[%clk 0:02:56]}  g6 {[%clk 0:03:01]} 5. d4 {[%clk 0:02:54]}  Bg7 {[%clk 0:03:01]} 6. c4 {[%clk 0:02:54]}  O-O {[%clk 0:03:01]} 7. Nc3 {[%clk 0:02:54]}  Ne4 {[%clk 0:03:02]} 8. Qc2 {[%clk 0:02:49]}  Nxc3 {[%clk 0:03:00]} 9. Qxc3 {[%clk 0:02:49]}  c5 {[%clk 0:03:01]} 10. Qd3 {[%clk 0:02:37]}  cxd4 {[%clk 0:02:50]} 11. Nxd4 {[%clk 0:02:36]}  Bxg2 {[%clk 0:02:48]} 12. Kxg2 {[%clk 0:02:36]}  d5 {[%clk 0:02:49]} 13. cxd5 {[%clk 0:02:12]}  Qxd5+ {[%clk 0:02:50]} 14. Qf3 {[%clk 0:01:56]}  Qxf3+ {[%clk 0:02:39]} 15. Nxf3 {[%clk 0:01:55]}  Nc6 {[%clk 0:02:39]} 16. Rb1 {[%clk 0:01:53]}  Rac8 {[%clk 0:02:37]} 17. Bd2 {[%clk 0:01:49]}  Rfd8 {[%clk 0:02:35]} 18. Rfc1 {[%clk 0:01:38]}  Kf8 {[%clk 0:02:26]} 19. Be1 {[%clk 0:01:35]}  Ke8 {[%clk 0:02:24]} 20. b3 {[%clk 0:01:27]}  Nb8 {[%clk 0:02:06]} 21. Rxc8 {[%clk 0:01:10]}  Rxc8 {[%clk 0:02:06]} 22. Bd2 {[%clk 0:01:10]}  Na6 {[%clk 0:02:01]} 23. Rc1 {[%clk 0:01:07]}  Rxc1 {[%clk 0:01:52]} 24. Bxc1 {[%clk 0:01:06]}  Nb4 {[%clk 0:01:51]} 25. a3 {[%clk 0:00:54]}  Nc6 {[%clk 0:01:51]} 26. Bd2 {[%clk 0:00:52]}  Bf6 {[%clk 0:01:40]} 27. Kf1 {[%clk 0:00:48]}  Kd7 {[%clk 0:01:35]} 28. e4 {[%clk 0:00:46]}  Bb2 {[%clk 0:01:31]} 29. a4 {[%clk 0:00:45]}  f6 {[%clk 0:01:28]} 30. Ke2 {[%clk 0:00:44]}  Bd4 {[%clk 0:01:28]} 31. Be1 {[%clk 0:00:37]}  Bc5 {[%clk 0:01:27]} 32. Kd3 {[%clk 0:00:34]}  e6 {[%clk 0:01:22]} 33. Ng1 {[%clk 0:00:31]}  Ne5+ {[%clk 0:01:21]} 34. Ke2 {[%clk 0:00:29]}  Nc6 {[%clk 0:01:21]} 35. Kd3 {[%clk 0:00:28]}  f5 {[%clk 0:01:20]} 36. Nf3 {[%clk 0:00:23]}  Be7 {[%clk 0:01:17]} 37. Bd2 {[%clk 0:00:21]}  Bf6 {[%clk 0:01:16]} 38. Bf4 {[%clk 0:00:20]}  Bg7 {[%clk 0:01:12]} 39. h3 {[%clk 0:00:18]}  Na5 {[%clk 0:01:11]} 40. Nd2 {[%clk 0:00:18]}  Bf8 {[%clk 0:01:10]} 41. Be5 {[%clk 0:00:16]}  Nc6 {[%clk 0:01:08]} 42. Bc3 {[%clk 0:00:15]}  Bc5 {[%clk 0:01:07]} 43. f3 {[%clk 0:00:15]}  Bd6 {[%clk 0:01:05]} 44. g4 {[%clk 0:00:15]}  Bf4 {[%clk 0:01:05]} 45. Nc4 {[%clk 0:00:15]}  Bg3 {[%clk 0:01:03]} 46. Ne3 {[%clk 0:00:14]}  fxg4 {[%clk 0:00:57]} 47. Nxg4 {[%clk 0:00:13]}  h5 {[%clk 0:00:56]} 48. Ne3 {[%clk 0:00:12]}  Bf4 {[%clk 0:00:56]} 49. Nc4 {[%clk 0:00:12]}  Ke7 {[%clk 0:00:56]} 50. Nd2 {[%clk 0:00:10]}  Kd7 {[%clk 0:00:53]} 51. Nc4 {[%clk 0:00:10]}  Bc7 {[%clk 0:00:54]} 52. b4 {[%clk 0:00:10]}  Nd8 {[%clk 0:00:54]} 53. b5 {[%clk 0:00:10]}  Nf7 {[%clk 0:00:54]} 54. Ke3 {[%clk 0:00:09]}  Ke8 {[%clk 0:00:39]} 55. f4 {[%clk 0:00:08]}  Bd6 {[%clk 0:00:39]} 56. Bf6 {[%clk 0:00:06]}  Bc5+ {[%clk 0:00:39]} 57. Kf3 {[%clk 0:00:07]}  Kd7 {[%clk 0:00:38]} 58. Ne5+ {[%clk 0:00:06]}  Ke8 {[%clk 0:00:29]} 59. Nxf7 {[%clk 0:00:06]}  Kxf7 {[%clk 0:00:30]} 60. Be5 {[%clk 0:00:06]}  Bb4 {[%clk 0:00:31]} 61. Bb8 {[%clk 0:00:05]}  Ba5 {[%clk 0:00:32]} 62. Bxa7 {[%clk 0:00:05]}  Kf6 {[%clk 0:00:32]} 63. Bb8 {[%clk 0:00:06]}  g5 {[%clk 0:00:32]} 64. Be5+ {[%clk 0:00:06]}  Kg6 {[%clk 0:00:33]} 65. fxg5 {[%clk 0:00:06]}  Kxg5 {[%clk 0:00:33]} 66. Bg3 {[%clk 0:00:07]}  Kf6 {[%clk 0:00:33]} 67. Bf2 {[%clk 0:00:07]}  Ke5 {[%clk 0:00:33]} 68. Be3 {[%clk 0:00:07]}  Kf6 {[%clk 0:00:33]} 69. Bd4+ {[%clk 0:00:07]}  Kg5 {[%clk 0:00:33]} 70. Be5 {[%clk 0:00:06]}  Bb4 {[%clk 0:00:32]} 71. Bd4 {[%clk 0:00:06]}  Ba5 {[%clk 0:00:32]} 72. Be3+ {[%clk 0:00:06]}  Kf6 {[%clk 0:00:32]} 73. Bf4 {[%clk 0:00:06]}  Bb4 {[%clk 0:00:29]} 74. Ke2 {[%clk 0:00:06]}  e5 {[%clk 0:00:26]} 75. Be3 {[%clk 0:00:05]}  Ba5 {[%clk 0:00:27]} 76. Bd2 {[%clk 0:00:05]} 1-0


[Site "https://www.chess.com"]

[Event "Titled Tuesday Blitz March 01 Early 2022"]
[White "Cruz, William Ferreira Da"]
[Black "Mirzoev, Azer"]
[WhiteFideId "2118050"]
[BlackFideId "13400304"]
[WhiteElo "2223"]
[BlackElo "2525"]
[Result "0-1"]
[Round "01"]
[TimeControl "180+1"]
[Date "2022.03.01"]
[WhiteClock "0:00:21"]
[BlackClock "0:00:32"]

1. d4 {[%clk 0:02:54]}  d5 {[%clk 0:02:57]} 2. c4 {[%clk 0:02:55]}  c6 {[%clk 0:02:58]} 3. Nc3 {[%clk 0:02:55]}  Nf6 {[%clk 0:02:58]} 4. Nf3 {[%clk 0:02:55]}  dxc4 {[%clk 0:02:58]} 5. a4 {[%clk 0:02:53]}  Bf5 {[%clk 0:02:58]} 6. e3 {[%clk 0:02:52]}  e6 {[%clk 0:02:59]} 7. Bxc4 {[%clk 0:02:53]}  Bb4 {[%clk 0:02:59]} 8. O-O {[%clk 0:02:52]}  O-O {[%clk 0:02:57]} 9. Qe2 {[%clk 0:02:51]}  Bg6 {[%clk 0:02:53]} 10. Bd3 {[%clk 0:02:39]}  Nbd7 {[%clk 0:02:46]} 11. e4 {[%clk 0:02:38]}  Bh5 {[%clk 0:02:38]} 12. e5 {[%clk 0:02:37]}  Nd5 {[%clk 0:02:37]} 13. Nxd5 {[%clk 0:02:37]}  cxd5 {[%clk 0:02:38]} 14. Qe3 {[%clk 0:02:33]}  Re8 {[%clk 0:02:03]} 15. Ng5 {[%clk 0:02:24]}  Bg6 {[%clk 0:02:03]} 16. Bxg6 {[%clk 0:02:20]}  fxg6 {[%clk 0:02:03]} 17. Bd2 {[%clk 0:02:08]}  Bxd2 {[%clk 0:02:00]} 18. Qxd2 {[%clk 0:02:07]}  h6 {[%clk 0:01:58]} 19. Nf3 {[%clk 0:02:05]}  g5 {[%clk 0:01:57]} 20. Rfc1 {[%clk 0:02:05]}  a5 {[%clk 0:01:50]} 21. Ra3 {[%clk 0:02:04]}  Nf8 {[%clk 0:01:48]} 22. Qd3 {[%clk 0:02:00]}  Qd7 {[%clk 0:01:41]} 23. h3 {[%clk 0:01:32]}  Qf7 {[%clk 0:01:39]} 24. Rac3 {[%clk 0:01:29]}  Re7 {[%clk 0:01:16]} 25. Rc8 {[%clk 0:01:10]}  Rxc8 {[%clk 0:01:16]} 26. Rxc8 {[%clk 0:01:11]}  Rc7 {[%clk 0:01:16]} 27. Rxc7 {[%clk 0:01:10]}  Qxc7 {[%clk 0:01:16]} 28. Qc3 {[%clk 0:01:10]}  Qxc3 {[%clk 0:01:15]} 29. bxc3 {[%clk 0:01:11]}  Nd7 {[%clk 0:01:15]} 30. Nd2 {[%clk 0:01:00]}  Nb6 {[%clk 0:01:15]} 31. Nb3 {[%clk 0:00:58]}  Nxa4 {[%clk 0:01:13]} 32. Nxa5 {[%clk 0:00:59]}  b5 {[%clk 0:01:10]} 33. Nc6 {[%clk 0:00:48]}  Nxc3 {[%clk 0:01:08]} 34. Kf1 {[%clk 0:00:48]}  Kf7 {[%clk 0:01:07]} 35. Ke1 {[%clk 0:00:46]}  Ke8 {[%clk 0:01:03]} 36. f3 {[%clk 0:00:45]}  Kd7 {[%clk 0:00:57]} 37. Nb4 {[%clk 0:00:45]}  Na4 {[%clk 0:00:54]} 38. Kd2 {[%clk 0:00:44]}  Nb6 {[%clk 0:00:55]} 39. Nd3 {[%clk 0:00:42]}  Nc4+ {[%clk 0:00:55]} 40. Kc3 {[%clk 0:00:42]}  Ne3 {[%clk 0:00:55]} 41. Nc5+ {[%clk 0:00:38]}  Ke7 {[%clk 0:00:54]} 42. g3 {[%clk 0:00:37]}  Nf1 {[%clk 0:00:53]} 43. f4 {[%clk 0:00:29]}  Nxg3 {[%clk 0:00:48]} 44. fxg5 {[%clk 0:00:29]}  Ne4+ {[%clk 0:00:32]} 45. Kb4 {[%clk 0:00:28]}  Nxg5 {[%clk 0:00:32]} 46. h4 {[%clk 0:00:26]}  Nf3 {[%clk 0:00:32]} 47. h5 {[%clk 0:00:21]}  Nxd4 {[%clk 0:00:32]} 0-1


[Site "https://www.chess.com"]

[Event "Titled Tuesday Blitz March 01 Early 2022"]
[White "Csonka, Balazs"]
[Black "Sarkar, Justin"]
[WhiteFideId "742910"]
[BlackFideId "2010011"]
[WhiteElo "2404"]
[BlackElo "2038"]
[Result "1-0"]
[Round "01"]
[TimeControl "180+1"]
[Date "2022.03.01"]
[WhiteClock "0:00:13"]
[BlackClock "0:00:01"]

1. d4 {[%clk 0:02:56]}  Nf6 {[%clk 0:02:57]} 2. c4 {[%clk 0:02:54]}  e6 {[%clk 0:02:50]} 3. Nc3 {[%clk 0:02:53]}  Bb4 {[%clk 0:02:49]} 4. e3 {[%clk 0:02:47]}  O-O {[%clk 0:02:43]} 5. Ne2 {[%clk 0:02:47]}  c6 {[%clk 0:02:35]} 6. a3 {[%clk 0:02:41]}  Ba5 {[%clk 0:02:35]} 7. Qc2 {[%clk 0:02:40]}  d5 {[%clk 0:02:28]} 8. Ng3 {[%clk 0:02:40]}  Nbd7 {[%clk 0:02:22]} 9. Bd2 {[%clk 0:02:37]}  dxc4 {[%clk 0:02:07]} 10. Bxc4 {[%clk 0:02:36]}  e5 {[%clk 0:02:05]} 11. O-O {[%clk 0:02:29]}  exd4 {[%clk 0:01:48]} 12. exd4 {[%clk 0:02:30]}  Nb6 {[%clk 0:01:45]} 13. Ba2 {[%clk 0:02:26]}  Nbd5 {[%clk 0:01:38]} 14. Rad1 {[%clk 0:01:59]}  Bg4 {[%clk 0:01:29]} 15. f3 {[%clk 0:01:58]}  Be6 {[%clk 0:01:28]} 16. Bb1 {[%clk 0:01:56]}  g6 {[%clk 0:01:12]} 17. Kh1 {[%clk 0:01:39]}  Nxc3 {[%clk 0:01:04]} 18. bxc3 {[%clk 0:01:37]}  Bc4 {[%clk 0:01:01]} 19. Rfe1 {[%clk 0:01:32]}  Nd5 {[%clk 0:00:58]} 20. Ne4 {[%clk 0:01:19]}  Bc7 {[%clk 0:00:55]} 21. Bg5 {[%clk 0:01:13]}  f6 {[%clk 0:00:47]} 22. Bh4 {[%clk 0:01:12]}  Qd7 {[%clk 0:00:39]} 23. Nc5 {[%clk 0:01:02]}  Qg7 {[%clk 0:00:31]} 24. Ne6 {[%clk 0:00:51]}  Qh6 {[%clk 0:00:26]} 25. Nxc7 {[%clk 0:00:46]}  Nxc7 {[%clk 0:00:23]} 26. Bg3 {[%clk 0:00:45]}  Nd5 {[%clk 0:00:19]} 27. Ba2 {[%clk 0:00:43]}  Bxa2 {[%clk 0:00:10]} 28. Qxa2 {[%clk 0:00:44]}  Rf7 {[%clk 0:00:10]} 29. Rd3 {[%clk 0:00:29]}  Kg7 {[%clk 0:00:10]} 30. c4 {[%clk 0:00:28]}  Nf4 {[%clk 0:00:08]} 31. Rde3 {[%clk 0:00:29]}  Qg5 {[%clk 0:00:03]} 32. Re7 {[%clk 0:00:17]}  Rf8 {[%clk 0:00:01]} 33. Qd2 {[%clk 0:00:15]}  Nh5 {[%clk 0:00:01]} 34. Qxg5 {[%clk 0:00:14]}  fxg5 {[%clk 0:00:01]} 35. Bd6 {[%clk 0:00:13]} 1-0


[Site "https://www.chess.com"]

[Event "Titled Tuesday Blitz March 01 Early 2022"]
[White "De Silva, L M S T"]
[Black "Smith, Shreyas"]
[WhiteFideId "9953698"]
[BlackFideId "7400713"]
[WhiteElo "1631"]
[BlackElo "2129"]
[Result "1-0"]
[Round "01"]
[TimeControl "180+1"]
[Date "2022.03.01"]
[WhiteClock "0:01:32"]
[BlackClock "0:00:05"]

1. c4 {[%clk 0:03:00]}  c6 {[%clk 0:02:59]} 2. Nc3 {[%clk 0:03:00]}  d5 {[%clk 0:02:59]} 3. cxd5 {[%clk 0:03:00]}  cxd5 {[%clk 0:03:00]} 4. d4 {[%clk 0:03:00]}  Nf6 {[%clk 0:03:00]} 5. Bf4 {[%clk 0:03:00]}  Nc6 {[%clk 0:03:00]} 6. e3 {[%clk 0:03:00]}  a6 {[%clk 0:02:59]} 7. Nf3 {[%clk 0:03:00]}  Bg4 {[%clk 0:02:58]} 8. Be2 {[%clk 0:03:00]}  e6 {[%clk 0:02:56]} 9. O-O {[%clk 0:03:00]}  Be7 {[%clk 0:02:55]} 10. Rc1 {[%clk 0:02:59]}  O-O {[%clk 0:02:54]} 11. a3 {[%clk 0:02:51]}  Nd7 {[%clk 0:02:43]} 12. Nd2 {[%clk 0:02:48]}  Bxe2 {[%clk 0:02:39]} 13. Qxe2 {[%clk 0:02:49]}  Rc8 {[%clk 0:02:32]} 14. Nb3 {[%clk 0:02:47]}  Na5 {[%clk 0:02:26]} 15. Nxa5 {[%clk 0:02:45]}  Qxa5 {[%clk 0:02:24]} 16. Rc2 {[%clk 0:02:45]}  Rc6 {[%clk 0:02:14]} 17. Rfc1 {[%clk 0:02:40]}  Rfc8 {[%clk 0:02:13]} 18. Qd3 {[%clk 0:02:37]}  Nb6 {[%clk 0:02:04]} 19. h3 {[%clk 0:02:12]}  Nc4 {[%clk 0:02:01]} 20. Nd1 {[%clk 0:01:53]}  Qe1+ {[%clk 0:01:06]} 21. Kh2 {[%clk 0:01:45]}  Nd2 {[%clk 0:00:56]} 22. Nc3 {[%clk 0:01:34]}  Rxc3 {[%clk 0:00:05]} 23. bxc3 {[%clk 0:01:32]} 1-0


[Site "https://www.chess.com"]

[Event "Titled Tuesday Blitz March 01 Early 2022"]
[White "Derraugh, Geordie"]
[Black "Rustemov, Alexander"]
[WhiteFideId "2603950"]
[BlackFideId "4119002"]
[WhiteElo "2116"]
[BlackElo "2795"]
[Result "0-1"]
[Round "01"]
[TimeControl "180+1"]
[Date "2022.03.01"]
[WhiteClock "0:00:05"]
[BlackClock "0:00:19"]

1. e4 {[%clk 0:02:59]}  e6 {[%clk 0:02:59]} 2. d4 {[%clk 0:02:58]}  d5 {[%clk 0:03:00]} 3. Nc3 {[%clk 0:02:58]}  Bb4 {[%clk 0:03:00]} 4. Ne2 {[%clk 0:02:57]}  Nf6 {[%clk 0:02:58]} 5. e5 {[%clk 0:02:57]}  Nfd7 {[%clk 0:02:58]} 6. f4 {[%clk 0:02:57]}  Be7 {[%clk 0:02:51]} 7. Be3 {[%clk 0:02:45]}  b6 {[%clk 0:02:46]} 8. Qd2 {[%clk 0:02:39]}  c5 {[%clk 0:02:45]} 9. O-O-O {[%clk 0:02:35]}  Nc6 {[%clk 0:02:36]} 10. g4 {[%clk 0:02:33]}  Ba6 {[%clk 0:02:19]} 11. h4 {[%clk 0:02:24]}  Qc7 {[%clk 0:02:10]} 12. h5 {[%clk 0:02:15]}  O-O-O {[%clk 0:02:02]} 13. Ng3 {[%clk 0:02:01]}  Bxf1 {[%clk 0:01:59]} 14. Rhxf1 {[%clk 0:02:01]}  a6 {[%clk 0:01:43]} 15. Rde1 {[%clk 0:02:01]}  Kb7 {[%clk 0:01:41]} 16. f5 {[%clk 0:02:00]}  cxd4 {[%clk 0:01:15]} 17. Bxd4 {[%clk 0:02:00]}  Ndxe5 {[%clk 0:01:13]} 18. fxe6 {[%clk 0:01:31]}  fxe6 {[%clk 0:01:13]} 19. Bxe5 {[%clk 0:01:19]}  Nxe5 {[%clk 0:01:13]} 20. Qe2 {[%clk 0:01:17]}  Bd6 {[%clk 0:01:11]} 21. Qg2 {[%clk 0:01:12]}  Rhe8 {[%clk 0:01:06]} 22. Nge2 {[%clk 0:01:11]}  Qc4 {[%clk 0:00:59]} 23. g5 {[%clk 0:01:02]}  Qg4 {[%clk 0:00:56]} 24. Qxg4 {[%clk 0:01:00]}  Nxg4 {[%clk 0:00:56]} 25. Nd4 {[%clk 0:01:00]}  Ne5 {[%clk 0:00:47]} 26. h6 {[%clk 0:00:53]}  gxh6 {[%clk 0:00:45]} 27. gxh6 {[%clk 0:00:53]}  Re7 {[%clk 0:00:44]} 28. Rf6 {[%clk 0:00:52]}  Rde8 {[%clk 0:00:44]} 29. Nf5 {[%clk 0:00:52]}  exf5 {[%clk 0:00:43]} 30. Rxd6 {[%clk 0:00:50]}  Nd3+ {[%clk 0:00:43]} 31. cxd3 {[%clk 0:00:51]}  Rxe1+ {[%clk 0:00:43]} 32. Kc2 {[%clk 0:00:47]}  R1e7 {[%clk 0:00:29]} 33. Nxd5 {[%clk 0:00:43]}  Rf7 {[%clk 0:00:23]} 34. Rxb6+ {[%clk 0:00:34]}  Ka7 {[%clk 0:00:23]} 35. Rb4 {[%clk 0:00:33]}  Rc8+ {[%clk 0:00:18]} 36. Kd2 {[%clk 0:00:32]}  Rc6 {[%clk 0:00:19]} 37. Rh4 {[%clk 0:00:27]}  Rd6 {[%clk 0:00:19]} 38. Nf4 {[%clk 0:00:26]}  Rb7 {[%clk 0:00:18]} 39. b3 {[%clk 0:00:26]}  a5 {[%clk 0:00:18]} 40. Rh5 {[%clk 0:00:26]}  Rf6 {[%clk 0:00:18]} 41. Nd5 {[%clk 0:00:25]}  Rff7 {[%clk 0:00:17]} 42. Ne3 {[%clk 0:00:25]}  f4 {[%clk 0:00:16]} 43. Rxa5+ {[%clk 0:00:25]}  Kb8 {[%clk 0:00:15]} 44. Ng4 {[%clk 0:00:19]}  f3 {[%clk 0:00:15]} 45. Nf2 {[%clk 0:00:20]}  Rbe7 {[%clk 0:00:16]} 46. Rb5+ {[%clk 0:00:16]}  Ka7 {[%clk 0:00:16]} 47. Ng4 {[%clk 0:00:07]}  f2 {[%clk 0:00:15]} 48. Nxf2 {[%clk 0:00:07]}  Rxf2+ {[%clk 0:00:15]} 49. Kc3 {[%clk 0:00:07]}  Rxa2 {[%clk 0:00:16]} 50. Rg5 {[%clk 0:00:07]}  Ra6 {[%clk 0:00:16]} 51. Rh5 {[%clk 0:00:03]}  Ree6 {[%clk 0:00:16]} 52. d4 {[%clk 0:00:04]}  Rxh6 {[%clk 0:00:16]} 53. Rg5 {[%clk 0:00:04]}  Rhg6 {[%clk 0:00:16]} 54. Rf5 {[%clk 0:00:04]}  Rac6+ {[%clk 0:00:17]} 55. Kd3 {[%clk 0:00:04]}  Rcf6 {[%clk 0:00:17]} 56. Re5 {[%clk 0:00:04]}  Re6 {[%clk 0:00:17]} 57. Rc5 {[%clk 0:00:03]}  Kb6 {[%clk 0:00:16]} 58. b4 {[%clk 0:00:02]}  Rd6 {[%clk 0:00:16]} 59. Rh5 {[%clk 0:00:02]}  Rg3+ {[%clk 0:00:16]} 60. Kc4 {[%clk 0:00:02]}  Rg4 {[%clk 0:00:17]} 61. Rxh7 {[%clk 0:00:01]}  Rdxd4+ {[%clk 0:00:17]} 62. Kc3 {[%clk 0:00:01]}  Rc4+ {[%clk 0:00:17]} 63. Kd3 {[%clk 0:00:01]}  Rxb4 {[%clk 0:00:18]} 64. Rh6+ {[%clk 0:00:01]}  Kb5 {[%clk 0:00:18]} 65. Rh5+ {[%clk 0:00:02]}  Ka4 {[%clk 0:00:18]} 66. Rh7 {[%clk 0:00:02]}  Rb3+ {[%clk 0:00:18]} 67. Kc2 {[%clk 0:00:03]}  Rf3 {[%clk 0:00:18]} 68. Ra7+ {[%clk 0:00:04]}  Kb5 {[%clk 0:00:18]} 69. Rb7+ {[%clk 0:00:05]}  Kc6 {[%clk 0:00:18]} 70. Rb3 {[%clk 0:00:05]}  Rg2+ {[%clk 0:00:19]} 71. Kc1 {[%clk 0:00:05]}  Rf1# {[%clk 0:00:19]} 0-1


[Site "https://www.chess.com"]

[Event "Titled Tuesday Blitz March 01 Early 2022"]
[White "Djokic, Mihailo"]
[Black "Lopez Del Alamo, Antonio"]
[WhiteFideId "976440"]
[BlackFideId "2227339"]
[WhiteElo "2008"]
[BlackElo "2082"]
[Result "1-0"]
[Round "01"]
[TimeControl "180+1"]
[Date "2022.03.01"]
[WhiteClock "0:01:27"]
[BlackClock "0:00:30"]

1. e4 {[%clk 0:02:59]}  c5 {[%clk 0:02:59]} 2. Nf3 {[%clk 0:03:00]}  e6 {[%clk 0:02:47]} 3. d4 {[%clk 0:02:59]}  cxd4 {[%clk 0:02:46]} 4. Nxd4 {[%clk 0:03:00]}  Nf6 {[%clk 0:02:45]} 5. Nc3 {[%clk 0:03:00]}  Nc6 {[%clk 0:02:45]} 6. Ndb5 {[%clk 0:03:00]}  d6 {[%clk 0:02:44]} 7. Bf4 {[%clk 0:03:00]}  e5 {[%clk 0:02:45]} 8. Bg5 {[%clk 0:03:01]}  a6 {[%clk 0:02:43]} 9. Bxf6 {[%clk 0:03:01]}  gxf6 {[%clk 0:02:42]} 10. Na3 {[%clk 0:03:02]}  b5 {[%clk 0:02:42]} 11. Nd5 {[%clk 0:03:02]}  Bg7 {[%clk 0:02:42]} 12. c3 {[%clk 0:03:02]}  Ne7 {[%clk 0:02:42]} 13. Nxe7 {[%clk 0:02:57]}  Qxe7 {[%clk 0:02:43]} 14. Nc2 {[%clk 0:02:56]}  f5 {[%clk 0:02:43]} 15. a4 {[%clk 0:02:54]}  fxe4 {[%clk 0:02:33]} 16. axb5 {[%clk 0:02:53]}  f5 {[%clk 0:02:31]} 17. bxa6 {[%clk 0:02:52]}  O-O {[%clk 0:02:31]} 18. Bc4+ {[%clk 0:02:46]}  Kh8 {[%clk 0:02:30]} 19. O-O {[%clk 0:02:37]}  f4 {[%clk 0:02:30]} 20. Qd5 {[%clk 0:02:22]}  Bf5 {[%clk 0:02:26]} 21. Nb4 {[%clk 0:02:18]}  f3 {[%clk 0:02:25]} 22. g3 {[%clk 0:02:14]}  Qg5 {[%clk 0:01:40]} 23. h4 {[%clk 0:02:11]}  Qg4 {[%clk 0:01:37]} 24. Rfe1 {[%clk 0:02:11]}  e3 {[%clk 0:01:28]} 25. Rxe3 {[%clk 0:02:07]}  e4 {[%clk 0:01:28]} 26. Nc6 {[%clk 0:01:52]}  Bh6 {[%clk 0:00:38]} 27. Qd4+ {[%clk 0:01:46]}  Bg7 {[%clk 0:00:38]} 28. Qxd6 {[%clk 0:01:44]}  Rf6 {[%clk 0:00:38]} 29. Qd5 {[%clk 0:01:39]}  Rh6 {[%clk 0:00:34]} 30. Nd4 {[%clk 0:01:29]}  Rxh4 {[%clk 0:00:30]} 31. Qxf5 {[%clk 0:01:27]} 1-0


[Site "https://www.chess.com"]